bitfinex/quotes_SOLUSD_20241213
["timestamp","ask_amount","ask_price","bid_price","bid_amount"]
[1734087936688,33.04122804,226.27,226.21,7.88180189]
[1734087936689,8.26030701,226.22,226.21,7.88180189]
[1734087937321,8.26030701,226.22,226.15,1.608]
[1734087937322,8.26030701,226.22,226.19,7.88180189]
[1734087937624,8.26030701,226.2,226.17,7.88180189]
[1734087937802,8.26030701,226.18,226.17,7.88180189]
[1734087938992,41.30153505,226.18,226.17,7.88180189]
[1734087939304,41.30153505,226.18,226.14,7.88180189]
[1734087939502,11.0508,226.23,226.14,7.88180189]
[1734087939503,8.26030701,226.15,226.14,7.88180189]
[1734087947318,8.26030701,226.15,226.09,1.608]
[1734087947319,8.26030701,226.15,226.09,9.48980189]
[1734087947518,8.26030701,226.1,226.07,7.88180189]
[1734087947821,20.0,226.13,226.1,7.88180189]
[1734087948004,8.26030701,226.11,226.1,7.88180189]
[1734087949103,20.0,226.13,226.1,7.88180189]
[1734087949316,8.26030701,226.11,226.1,7.88180189]
[1734087949622,33.04122804,226.16,226.13,7.88180189]
[1734087949823,8.26030701,226.14,226.13,7.88180189]
[1734087950723,8.26030701,226.14,226.05,6.85242254]
[1734087950724,13.6899046,226.22,226.15,7.88180189]
[1734087950906,8.26030701,226.16,226.15,7.88180189]
[1734087952328,13.6899046,226.22,226.15,7.88180189]
[1734087952508,8.26030701,226.16,226.15,7.88180189]
[1734087956631,8.26030701,226.18,226.15,7.88180189]
[1734087956834,8.26030701,226.18,226.17,7.88180189]
[1734087960724,20.0,226.23,226.17,7.88180189]
[1734087961027,8.26030701,226.18,226.17,7.88180189]
[1734087965808,8.26030701,226.18,226.15,7.88180189]
[1734087966016,31.0508,226.23,226.15,7.88180189]
[1734087966017,8.26030701,226.16,226.15,7.88180189]
[1734087966315,8.26030701,226.16,226.11,1.5311]
[1734087966316,8.26030701,226.16,226.13,7.88180189]
[1734087966511,8.26030701,226.14,226.13,7.88180189]
[1734087967110,8.26030701,226.14,226.11,7.88180189]
[1734087967313,8.26030701,226.12,226.09,7.88180189]
[1734087967537,8.26030701,226.1,226.09,7.88180189]
[1734087970743,8.26030701,226.1,226.07,7.88180189]
[1734087970976,8.26030701,226.08,226.07,7.88180189]
[1734087974935,20.0,226.12,226.1,7.88180189]
[1734087975141,8.26030701,226.11,226.1,7.88180189]
[1734087976559,8.26030701,226.11,226.02,15.0664048]
[1734087976560,11.0511,226.23,226.14,7.88180189]
[1734087977132,8.26030701,226.15,226.14,7.88180189]
[1734087977931,11.0511,226.23,226.17,7.88180189]
[1734087978259,8.26030701,226.18,226.17,7.88180189]
[1734087978440,11.0511,226.23,226.17,7.88180189]
[1734087978635,8.26030701,226.18,226.17,7.88180189]
[1734087979433,10.87905082,226.26,226.21,7.88180189]
[1734087979776,12.6676,226.31,226.23,7.88180189]
[1734087979976,12.6676,226.31,226.25,7.88180189]
[1734087980835,12.6676,226.31,226.18,2.28687579]
[1734087980836,8.26030701,226.26,226.23,7.88180189]
[1734087981143,8.26030701,226.24,226.23,7.88180189]
[1734087981859,28.19685858,226.32,226.28,7.88180189]
[1734087982048,61.30153505,226.29,226.24,7.88180189]
[1734087982245,8.26030701,226.25,226.24,7.88180189]
[1734087982862,8.26030701,226.25,226.22,7.88180189]
[1734087983065,8.26030701,226.23,226.22,7.88180189]
[1734087990466,8.26030701,226.23,226.18,1.6239]
[1734087990467,8.26030701,226.23,226.17,7.88180189]
[1734087990655,8.26030701,226.18,226.17,7.88180189]
[1734087995045,11.0494,226.26,226.17,7.88180189]
[1734087995046,8.26030701,226.19,226.17,7.88180189]
[1734087996369,8.26030701,226.18,226.17,7.88180189]
[1734088001652,8.26030701,226.18,226.1,0.66318144]
[1734088001653,8.26030701,226.18,226.15,7.88180189]
[1734088001853,41.30153505,226.16,226.15,7.88180189]
[1734088002481,41.30153505,226.16,226.13,7.88180189]
[1734088002686,8.26030701,226.14,226.13,7.88180189]
[1734088010862,20.0,226.2,226.17,7.88180189]
[1734088011177,8.26030701,226.18,226.17,7.88180189]
[1734088011562,11.0507,226.23,226.19,7.88180189]
[1734088012051,8.26030701,226.2,226.19,7.88180189]
[1734088012653,11.0507,226.23,226.19,7.88180189]
[1734088012869,8.26030701,226.2,226.19,7.88180189]
[1734088013475,20.0,226.23,226.21,7.88180189]
[1734088013652,8.26030701,226.22,226.21,7.88180189]
[1734088015478,8.26030701,226.22,226.09,6.2523]
[1734088015479,8.26030701,226.22,226.17,7.88180189]
[1734088015774,8.26030701,226.18,226.17,7.88180189]
[1734088019458,41.30153505,226.18,226.13,7.88180189]
[1734088019658,8.26030701,226.14,226.13,7.88180189]
[1734088022087,11.0523,226.2,226.16,7.88180189]
[1734088022257,20.0,226.21,226.18,7.88180189]
[1734088022462,8.26030701,226.19,226.16,7.88180189]
[1734088022662,8.26030701,226.17,226.16,7.88180189]
[1734088023563,8.26030701,226.17,226.14,7.88180189]
[1734088023781,8.26030701,226.15,226.14,7.88180189]
[1734088024879,11.0511,226.22,226.18,7.88180189]
[1734088025062,8.26030701,226.19,226.18,7.88180189]
[1734088025458,11.0494,226.26,226.22,7.88180189]
[1734088025660,8.26030701,226.23,226.22,7.88180189]
[1734088036005,44.09002804,226.27,226.22,7.88180189]
[1734088036303,20.0,226.25,226.24,7.88180189]
[1734088037903,28.26030701,226.25,226.24,7.88180189]
[1734088040498,31.0502,226.24,226.21,7.88180189]
[1734088040703,8.26030701,226.22,226.21,7.88180189]
[1734088041687,31.0502,226.24,226.21,7.88180189]
[1734088041889,8.26030701,226.22,226.21,7.88180189]
[1734088048006,31.0502,226.24,226.21,7.88180189]
[1734088048215,33.04122804,226.27,226.23,7.88180189]
[1734088048393,39.25115651,226.28,226.16,2.21840785]
[1734088048394,11.0487,226.28,226.26,7.88180189]
[1734088049418,8.26030701,226.27,226.26,7.88180189]
[1734088050205,11.0467,226.32,226.26,7.88180189]
[1734088050404,8.26030701,226.27,226.26,7.88180189]
[1734088051123,11.0445,226.36,226.32,7.88180189]
[1734088051485,8.26030701,226.33,226.32,7.88180189]
[1734088054595,8.26030701,226.33,226.24,2.31144062]
[1734088054596,19.30620701,226.33,226.3,7.88180189]
[1734088054906,8.26030701,226.31,226.28,7.88180189]
[1734088055102,8.26030701,226.29,226.28,7.88180189]
[1734088056397,11.0459,226.33,226.32,7.88180189]
[1734088056606,19.30620701,226.33,226.32,7.88180189]
[1734088061013,19.30620701,226.33,226.3,7.88180189]
[1734088061316,33.04122804,226.38,226.3,7.88180189]
[1734088061317,8.26030701,226.31,226.3,7.88180189]
[1734088063405,20.0,226.27,226.26,7.88180189]
[1734088063599,61.30153505,226.27,226.26,7.88180189]
[1734088065429,61.30153505,226.27,226.24,7.88180189]
[1734088065820,8.26030701,226.25,226.24,7.88180189]
[1734088069109,53.04122804,226.27,226.26,7.88180189]
[1734088069430,61.30153505,226.27,226.26,7.88180189]
[1734088075650,28.26030701,226.27,226.26,7.88180189]
[1734088076230,20.0,226.27,226.26,7.88180189]
[1734088076437,8.26030701,226.27,226.26,7.88180189]
[1734088086129,22.0887,226.36,226.33,7.88180189]
[1734088086130,20.0,226.34,226.33,7.88180189]
[1734088086329,28.26030701,226.34,226.33,7.88180189]
[1734088088347,11.0443,226.36,226.35,7.88180189]
[1734088088644,19.30460701,226.36,226.35,7.88180189]
[1734088088847,8.26030701,226.36,226.35,7.88180189]
[1734088089226,11.0428,226.4,226.35,7.88180189]
[1734088089439,8.26030701,226.36,226.35,7.88180189]
[1734088090049,8.26030701,226.37,226.35,7.88180189]
[1734088090934,8.26030701,226.36,226.35,7.88180189]
[1734088095537,11.0408,226.44,226.43,7.88180189]
[1734088095737,40.610729,226.47,226.45,7.88180189]
[1734088095947,8.26030701,226.46,226.45,7.88180189]
[1734088097036,11.0388,226.48,226.47,7.88180189]
[1734088097345,19.29910701,226.48,226.47,7.88180189]
[1734088098440,8.26030701,226.48,226.47,7.88180189]
[1734088099054,11.0369,226.52,226.5,7.88180189]
[1734088099246,8.26030701,226.51,226.5,7.88180189]
[1734088100053,0.3760858,226.55,226.54,7.88180189]
[1734088100252,8.63639281,226.55,226.54,7.88180189]
[1734088104164,0.3760858,226.55,226.54,7.88180189]
[1734088104548,0.3760858,226.55,226.54,31.65868589]
[1734088105140,0.3760858,226.55,226.54,31.78417589]
[1734088111973,8.63639281,226.55,226.54,7.88180189]
[1734088113083,0.3760858,226.55,226.54,7.88180189]
[1734088113262,8.63639281,226.55,226.54,7.88180189]
[1734088115953,0.3760858,226.55,226.54,7.88180189]
[1734088116359,8.63639281,226.55,226.54,7.88180189]
[1734088116965,0.3760858,226.55,226.54,7.88180189]
[1734088117355,8.63639281,226.55,226.54,7.88180189]
[1734088118151,0.3760858,226.55,226.54,31.65868589]
[1734088118367,0.3760858,226.55,226.54,40.83191598]
[1734088118549,0.3760858,226.55,226.54,62.00821598]
[1734088118873,0.3760858,226.55,226.54,77.00821598]
[1734088119177,8.26030701,226.63,226.62,7.88180189]
[1734088120852,44.06882804,226.71,226.69,7.88180189]
[1734088121084,8.26030701,226.7,226.69,7.88180189]
[1734088125171,8.26030701,226.7,226.6,1.5697]
[1734088125172,20.0,226.66,226.65,7.88180189]
[1734088125364,28.26030701,226.66,226.65,7.88180189]
[1734088126357,20.0,226.66,226.65,7.88180189]
[1734088126555,28.26030701,226.66,226.65,7.88180189]
[1734088128263,28.26030701,226.66,226.65,4.34860189]
[1734088131158,8.26030701,226.66,226.65,4.34860189]
[1734088135277,11.0282,226.69,226.68,4.34860189]
[1734088135479,19.28850701,226.69,226.68,4.34860189]
[1734088137700,8.26030701,226.69,226.68,4.34860189]
[1734088140484,19.28850701,226.69,226.65,4.34860189]
[1734088140679,28.26030701,226.66,226.65,1.89e-06]
[1734088141889,39.29000701,226.66,226.65,1.89e-06]
[1734088143801,39.29000701,226.66,226.55,2.23159993]
[1734088143802,94.39063505,226.66,226.55,1.5697]
[1734088144103,8.26030701,226.56,226.54,6.1763]
[1734088144294,8.26030701,226.55,226.54,6.1763]
[1734088144496,8.26030701,226.55,226.49,8.2229]
[1734088145897,8.26030701,226.52,226.49,8.2229]
[1734088146195,8.26030701,226.51,226.49,8.2229]
[1734088147398,1.87248849,226.65,226.51,0.12549]
[1734088147600,20.0,226.66,226.53,32.16268101]
[1734088147793,20.0,226.66,226.55,23.776884]
[1734088148098,11.0294,226.67,226.59,8.2229]
[1734088148306,11.0294,226.67,226.6,23.776884]
[1734088148481,8.26030701,226.63,226.6,23.776884]
[1734088148685,8.26030701,226.62,226.6,23.776884]
[1734088149303,12.85408909,226.62,226.6,23.776884]
[1734088149714,11.0268,226.72,226.61,0.9127976]
[1734088149919,11.0268,226.72,226.63,0.25098]
[1734088150122,11.0268,226.72,226.64,23.776884]
[1734088150428,12.85408909,226.67,226.64,23.776884]
[1734088151388,11.0268,226.72,226.64,23.776884]
[1734088151588,12.85408909,226.67,226.64,23.776884]
[1734088153108,12.85408909,226.67,226.65,0.66168626]
[1734088153911,12.85408909,226.67,226.64,23.776884]
[1734088153912,12.85408909,226.67,226.64,24.43855107]
[1734088154906,12.85408909,226.65,226.6,0.66173228]
[1734088155288,12.85408909,226.64,226.6,0.66173228]
[1734088156096,12.85408909,226.61,226.59,8.2229]
[1734088156293,12.85408909,226.6,226.59,8.2229]
[1734088156990,12.85408909,226.6,226.59,1.5786]
[1734088158200,12.85408909,226.6,226.56,23.776884]
[1734088158407,12.85408909,226.57,226.55,23.776884]
[1734088158617,11.0301,226.66,226.55,23.776884]
[1734088158807,12.85408909,226.57,226.55,23.776884]
[1734088159012,12.85408909,226.56,226.54,8.1991]
[1734088159192,12.85408909,226.55,226.54,8.1991]
[1734088159809,12.85408909,226.56,226.54,8.1991]
[1734088160198,12.85408909,226.58,226.55,23.776884]
[1734088160388,12.85408909,226.59,226.55,23.776884]
[1734088161311,12.85408909,226.6,226.56,0.6619331]
[1734088161512,12.85408909,226.6,226.57,23.776884]
[1734088162110,12.85408909,226.61,226.57,23.776884]
[1734088162307,11.0297,226.66,226.58,0.66187352]
[1734088162509,12.85408909,226.62,226.59,23.776884]
[1734088163798,12.85408909,226.63,226.59,23.776884]
[1734088166137,12.85408909,226.64,226.61,23.776884]
[1734088166323,12.85408909,226.65,226.61,23.776884]
[1734088166498,12.85408909,226.66,226.61,23.776884]
[1734088167042,12.85408909,226.66,226.6,0.66178608]
[1734088167043,12.85408909,226.66,226.63,23.776884]
[1734088167718,12.85408909,226.66,226.61,23.902374]
[1734088168092,11.0277,226.7,226.61,23.902374]
[1734088168296,12.85408909,226.65,226.61,23.902374]
[1734088168900,12.85408909,226.65,226.61,0.12549]
[1734088169633,11.0279,226.7,226.62,23.776884]
[1734088169634,12.85408909,226.66,226.62,23.776884]
[1734088169997,12.85408909,226.65,226.62,23.776884]
[1734088171299,8.22427603,226.65,226.62,23.776884]
[1734088171699,8.22427603,226.64,226.58,0.66176734]
[1734088171913,8.22427603,226.63,226.59,23.776884]
[1734088172306,8.22427603,226.61,226.58,0.66176734]
[1734088172524,8.22427603,226.6,226.55,0.66183815]
[1734088173033,8.22427603,226.58,226.55,0.66183815]
[1734088173230,15.0,226.74,226.55,0.66183815]
[1734088173432,8.22427603,226.62,226.56,8.22427603]
[1734088173635,8.22427603,226.62,226.58,23.776884]
[1734088173809,8.22427603,226.63,226.58,23.776884]
[1734088174012,8.22427603,226.62,226.58,23.776884]
[1734088175223,12.85409951,226.61,226.58,24.43873888]
[1734088175413,12.85409951,226.61,226.57,23.776884]
[1734088176220,12.85409951,226.58,226.55,23.776884]
[1734088176943,12.85409951,226.59,226.55,23.776884]
[1734088177154,12.85409951,226.58,226.55,23.776884]
[1734088178927,12.85409951,226.58,226.54,8.1991]
[1734088180021,12.85409951,226.57,226.54,8.1991]
[1734088180334,12.85409951,226.57,226.55,23.776884]
[1734088180537,12.85409951,226.56,226.51,24.027864]
[1734088180832,12.85409951,226.55,226.51,24.027864]
[1734088181037,12.85409951,226.56,226.51,24.027864]
[1734088181337,12.85409951,226.56,226.53,23.776884]
[1734088181732,12.85409951,226.57,226.53,23.776884]
[1734088182223,12.85409951,226.57,226.52,23.776884]
[1734088183743,12.85409951,226.54,226.51,0.12549]
[1734088184131,12.85409951,226.6,226.49,7.6787]
[1734088184132,12.85409951,226.53,226.49,7.6787]
[1734088185235,12.85409951,226.54,226.49,7.6787]
[1734088185432,12.85409951,226.54,226.5,23.776884]
[1734088186654,12.85409951,226.55,226.5,23.776884]
[1734088186950,12.85409951,226.53,226.5,23.776884]
[1734088187235,12.85409951,226.52,226.5,23.776884]
[1734088187755,12.85409951,226.51,226.5,23.776884]
[1734088187956,12.85409951,226.52,226.5,23.776884]
[1734088188153,12.85409951,226.51,226.49,1.6251]
[1734088188358,12.85409951,226.5,226.45,0.12549]
[1734088188653,12.85409951,226.49,226.45,0.12549]
[1734088189563,12.85409951,226.49,226.45,23.902374]
[1734088189716,11.035,226.56,226.45,23.902374]
[1734088189717,12.85409951,226.5,226.45,23.902374]
[1734088190731,11.035,226.56,226.45,23.902374]
[1734088190925,12.85409951,226.5,226.45,23.776884]
[1734088191138,12.85409951,226.48,226.45,23.776884]
[1734088191525,12.85409951,226.47,226.44,8.2478]
[1734088192354,11.0369,226.52,226.44,8.2478]
[1734088192568,12.85409951,226.48,226.44,8.2478]
[1734088192863,12.85409951,226.48,226.45,23.776884]
[1734088193225,20.0,226.55,226.45,23.776884]
[1734088193431,12.85409951,226.5,226.45,23.776884]
[1734088194231,11.0355,226.54,226.45,23.776884]
[1734088194464,12.85409951,226.5,226.45,23.776884]
[1734088194623,11.0355,226.54,226.47,23.776884]
[1734088194977,12.85409951,226.54,226.49,23.776884]
[1734088195284,12.85409951,226.53,226.49,23.776884]
[1734088195778,12.85409951,226.54,226.49,23.776884]
[1734088195939,12.85409951,226.53,226.49,23.776884]
[1734088197158,11.0339,226.58,226.49,23.776884]
[1734088197364,8.23302105,226.53,226.49,23.776884]
[1734088202763,16.5419,226.64,226.49,23.776884]
[1734088202969,11.0311,226.63,226.51,23.776884]
[1734088203164,11.0311,226.63,226.56,23.776884]
[1734088203371,8.23302105,226.62,226.56,23.776884]
[1734088203564,8.23302105,226.62,226.56,24.43882081]
[1734088204957,8.23302105,226.62,226.56,23.776884]
[1734088205772,8.23302105,226.62,226.56,24.43878289]
[1734088206684,8.23302105,226.62,226.56,32.67180394]
[1734088206891,8.23302105,226.63,226.56,32.67180394]
[1734088207402,8.23302105,226.63,226.57,0.12549]
[1734088207562,8.23302105,226.63,226.59,23.776884]
[1734088207960,8.23302105,226.61,226.59,23.776884]
[1734088208181,8.23302105,226.61,226.57,23.902374]
[1734088208689,8.23302105,226.58,226.55,23.776884]
[1734088209057,8.23302105,226.59,226.55,23.776884]
[1734088210083,8.23302105,226.59,226.54,0.66190066]
[1734088210084,8.23302105,226.6,226.57,23.776884]
[1734088210868,8.23302105,226.59,226.54,23.902374]
[1734088211070,8.23302105,226.6,226.56,23.776884]
[1734088211961,11.03,226.66,226.6,23.776884]
[1734088212262,8.23302105,226.66,226.61,0.12549]
[1734088212857,8.23302105,226.67,226.63,23.776884]
[1734088214188,8.23302105,226.66,226.63,23.776884]
[1734088214385,8.23302105,226.64,226.61,23.776884]
[1734088214584,8.23302105,226.62,226.61,23.776884]
[1734088215766,8.23302105,226.62,226.54,0.66187897]
[1734088216077,8.23302105,226.59,226.55,24.027864]
[1734088216271,8.23302105,226.59,226.55,0.25098]
[1734088217076,8.23302105,226.59,226.56,0.66193368]
[1734088217273,8.23302105,226.59,226.55,0.25098]
[1734088217274,12.85816709,226.59,226.55,0.25098]
[1734088217588,12.85816709,226.6,226.55,24.027864]
[1734088217771,12.85816709,226.6,226.57,23.776884]
[1734088218285,12.85816709,226.59,226.57,23.776884]
[1734088219390,12.85816709,226.61,226.57,23.776884]
[1734088220384,12.85816709,226.63,226.58,0.78736836]
[1734088220688,12.85816709,226.62,226.59,23.776884]
[1734088220863,12.85816709,226.63,226.59,23.776884]
[1734088221059,12.85816709,226.62,226.59,23.776884]
[1734088221263,12.85816709,226.6,226.59,23.776884]
[1734088222968,12.85816709,226.62,226.59,23.776884]
[1734088223158,12.85816709,226.61,226.59,23.776884]
[1734088223565,12.85816709,226.6,226.59,23.776884]
[1734088224589,12.85816709,226.62,226.59,23.776884]
[1734088224784,12.85816709,226.62,226.58,23.776884]
[1734088226383,12.85816709,226.62,226.6,23.776884]
[1734088226687,12.85816709,226.63,226.6,23.776884]
[1734088227285,11.0304,226.65,226.6,23.776884]
[1734088227596,12.85816709,226.63,226.6,23.776884]
[1734088228495,11.0304,226.65,226.6,23.776884]
[1734088228673,12.85816709,226.63,226.6,23.776884]
[1734088229792,12.85816709,226.63,226.61,0.12549]
[1734088230991,11.0304,226.65,226.61,0.12549]
[1734088231293,12.85816709,226.64,226.61,0.12549]
[1734088232895,12.85816709,226.63,226.61,0.12549]
[1734088233491,12.85816709,226.64,226.61,0.12549]
[1734088236227,12.85816709,226.63,226.6,23.776884]
[1734088236498,12.85816709,226.62,226.59,23.776884]
[1734088236716,12.85816709,226.62,226.58,24.68970198]
[1734088238592,12.85816709,226.59,226.55,0.66183914]
[1734088238924,11.0317,226.62,226.55,0.66183914]
[1734088238925,12.85816709,226.57,226.55,0.66183914]
[1734088239211,8.23026552,226.57,226.55,0.66183914]
[1734088239576,8.23026552,226.57,226.54,0.66195559]
[1734088240206,8.23026552,226.57,226.55,23.776884]
[1734088242291,8.23026552,226.57,226.54,23.776884]
[1734088245692,8.23026552,226.55,226.49,0.66200352]
[1734088245905,8.23026552,226.53,226.47,16.38686552]
[1734088246100,8.23026552,226.53,226.47,8.1566]
[1734088246302,8.23026552,226.53,226.47,16.38686552]
[1734088246814,32.92106208,226.6,226.47,8.1566]
[1734088246815,8.23026552,226.52,226.47,8.1566]
[1734088247484,8.23026552,226.52,226.48,23.902374]
[1734088250712,8.23026552,226.52,226.48,0.12549]
[1734088252320,8.23026552,226.5,226.47,23.776884]
[1734088252813,8.23026552,226.5,226.45,24.6900799]
[1734088253116,8.23026552,226.51,226.45,32.92034542]
[1734088253413,8.23026552,226.51,226.45,24.6900799]
[1734088253613,8.23026552,226.49,226.43,32.00714952]
[1734088253787,8.23026552,226.49,226.44,0.25098]
[1734088254111,8.23026552,226.49,226.44,0.12549]
[1734088254997,8.23026552,226.47,226.43,23.776884]
[1734088255396,8.23026552,226.47,226.42,23.776884]
[1734088257113,8.23026552,226.46,226.42,23.776884]
[1734088257416,8.23026552,226.44,226.38,24.43875163]
[1734088258005,43.95906208,226.49,226.39,8.23026552]
[1734088258006,8.23026552,226.45,226.39,8.23026552]
[1734088258607,8.23026552,226.45,226.4,23.902374]
[1734088261117,8.23026552,226.43,226.39,23.902374]
[1734088261704,8.23026552,226.41,226.37,23.776884]
[1734088261901,8.23026552,226.41,226.35,8.23026552]
[1734088262297,32.92106208,226.49,226.32,0.6625312]
[1734088262298,8.23026552,226.4,226.32,0.6625312]
[1734088262499,8.23026552,226.4,226.34,8.23026552]
[1734088263140,8.23026552,226.39,226.33,8.23026552]
[1734088263511,8.23026552,226.38,226.33,24.027864]
[1734088264227,8.23026552,226.36,226.32,0.12549]
[1734088264529,8.23026552,226.37,226.32,0.12549]
[1734088264740,8.23026552,226.37,226.31,8.23026552]
[1734088265044,33.1168,226.47,226.3,0.66257444]
[1734088265045,8.23026552,226.36,226.3,8.89283996]
[1734088265204,8.23026552,226.36,226.3,0.66257444]
[1734088265405,8.23026552,226.37,226.31,32.00714952]
[1734088266254,22.0779,226.47,226.31,32.00714952]
[1734088266255,8.23026552,226.36,226.31,23.776884]
[1734088266447,8.23026552,226.37,226.31,23.776884]
[1734088267010,8.23026552,226.36,226.31,23.776884]
[1734088268005,8.23026552,226.34,226.29,23.776884]
[1734088268306,8.23026552,226.32,226.26,8.23026552]
[1734088268656,8.23026552,226.3,226.22,0.66278536]
[1734088268807,8.23026552,226.3,226.24,8.23026552]
[1734088269007,8.23026552,226.29,226.22,0.66278536]
[1734088269245,8.23026552,226.29,226.23,8.23026552]
[1734088269446,8.23026552,226.29,226.22,3.33710809]
[1734088269610,8.23026552,226.29,226.23,8.23026552]
[1734088270657,8.23026552,226.28,226.23,23.776884]
[1734088270858,8.23026552,226.28,226.22,8.23026552]
[1734088271026,8.23026552,226.28,226.23,23.776884]
[1734088271428,21.5118,226.34,226.24,8.23026552]
[1734088271726,8.23026552,226.31,226.26,23.776884]
[1734088272320,8.23026552,226.3,226.24,32.00714952]
[1734088272946,8.23026552,226.28,226.22,23.776884]
[1734088273149,8.23026552,226.28,226.23,0.12549]
[1734088273824,8.23026552,226.29,226.24,23.776884]
[1734088278162,8.23026552,226.28,226.24,23.776884]
[1734088278349,8.23026552,226.28,226.23,23.776884]
[1734088279547,8.23026552,226.29,226.23,32.00714952]
[1734088280637,8.23026552,226.28,226.23,23.776884]
[1734088282436,8.23026552,226.27,226.22,23.776884]
[1734088282637,8.23026552,226.27,226.21,8.23026552]
[1734088283063,8.23026552,226.27,226.2,24.027864]
[1734088283263,8.23026552,226.27,226.2,32.25812952]
[1734088285245,8.23026552,226.27,226.22,23.776884]
[1734088288069,6.4631,226.33,226.27,23.776884]
[1734088288358,32.5572,226.34,226.27,23.776884]
[1734088288359,8.23026552,226.31,226.27,23.776884]
[1734088288559,8.23026552,226.31,226.26,23.776884]
[1734088290043,8.23026552,226.31,226.25,23.776884]
[1734088290242,8.23026552,226.3,226.25,23.776884]
[1734088292463,20.0,226.33,226.25,23.776884]
[1734088292671,8.23026552,226.3,226.25,23.776884]
[1734088294159,8.23026552,226.31,226.25,23.776884]
[1734088295451,8.23026552,226.3,226.25,23.776884]
[1734088296264,8.23026552,226.26,226.25,23.776884]
[1734088296468,8.23026552,226.26,226.19,8.23026552]
[1734088296769,8.23026552,226.25,226.19,8.23026552]
[1734088297263,8.23026552,226.24,226.18,8.23026552]
[1734088297673,8.23026552,226.25,226.19,23.776884]
[1734088297866,8.23026552,226.25,226.19,8.23026552]
[1734088298047,8.23026552,226.25,226.2,23.776884]
[1734088298449,8.23026552,226.25,226.19,23.776884]
[1734088300750,11.0493,226.26,226.17,23.776884]
[1734088300751,8.23026552,226.23,226.17,23.776884]
[1734088301076,8.23026552,226.2,226.14,8.23026552]
[1734088301247,8.23026552,226.19,226.1,0.66309787]
[1734088301452,8.23026552,226.19,226.12,8.23026552]
[1734088302381,8.23026552,226.19,226.1,0.66309787]
[1734088302550,8.23026552,226.19,226.12,8.23026552]
[1734088302885,8.23026552,226.19,226.13,8.23026552]
[1734088303688,8.23026552,226.2,226.14,32.00714952]
[1734088307357,11.0515,226.22,226.14,32.00714952]
[1734088307358,11.0515,226.22,226.16,8.23026552]
[1734088307672,1.6147,226.26,226.1,0.66309787]
[1734088307673,8.23026552,226.24,226.18,32.00714952]
[1734088308465,8.23026552,226.24,226.17,8.23026552]
[1734088308664,8.23026552,226.24,226.18,23.776884]
[1734088308890,8.23026552,226.22,226.18,23.776884]
[1734088309057,8.23026552,226.22,226.17,23.776884]
[1734088311155,8.23026552,226.23,226.17,23.776884]
[1734088311653,12.6642,226.26,226.17,32.00714952]
[1734088311654,8.23026552,226.24,226.17,32.00714952]
[1734088311851,8.23026552,226.23,226.17,23.776884]
[1734088312058,8.23026552,226.22,226.17,23.776884]
[1734088320464,8.23026552,226.24,226.18,8.23026552]
[1734088320667,8.23026552,226.24,226.19,23.776884]
[1734088320979,8.23026552,226.24,226.17,23.776884]
[1734088321172,8.23026552,226.24,226.15,0.12549]
[1734088321173,8.23026552,226.28,226.22,8.23026552]
[1734088321378,9.88486552,226.31,226.25,8.23026552]
[1734088321601,9.88486552,226.31,226.26,23.776884]
[1734088321602,8.23026552,226.31,226.26,23.776884]
[1734088322472,8.23026552,226.32,226.26,23.776884]
[1734088322686,11.0457,226.34,226.27,8.23026552]
[1734088322911,11.0457,226.34,226.3,23.776884]
[1734088323272,19.27596552,226.34,226.3,23.776884]
[1734088323492,19.27596552,226.34,226.29,23.776884]
[1734088324173,11.0457,226.34,226.29,23.776884]
[1734088324369,19.27596552,226.34,226.29,23.776884]
[1734088324575,19.27596552,226.34,226.28,23.776884]
[1734088324774,11.0457,226.34,226.28,32.00714952]
[1734088325103,11.0457,226.34,226.3,23.776884]
[1734088325284,11.0457,226.34,226.28,32.00714952]
[1734088325592,1.5258,226.45,226.33,8.23026552]
[1734088325901,36.0268228,226.44,226.39,23.776884]
[1734088326196,8.23026552,226.42,226.39,23.776884]
[1734088326699,27.79655728,226.44,226.37,32.00714952]
[1734088326878,36.0268228,226.44,226.39,23.776884]
[1734088327885,8.23026552,226.41,226.39,23.776884]
[1734088328093,8.23026552,226.4,226.39,23.776884]
[1734088328289,8.23026552,226.41,226.39,23.776884]
[1734088328488,8.23026552,226.42,226.39,23.776884]
[1734088329104,8.23026552,226.42,226.37,23.776884]
[1734088330392,38.83735728,226.44,226.39,32.00714952]
[1734088330694,38.83735728,226.44,226.4,23.776884]
[1734088331671,38.83735728,226.44,226.39,23.776884]
[1734088332100,38.83735728,226.44,226.39,32.00714952]
[1734088332277,38.83735728,226.44,226.4,8.23026552]
[1734088332278,27.79655728,226.44,226.4,8.23026552]